Cogmind - Beta 17 @@@ ROGUE MODE // 2026.07.13 @ 15:22:35 Player: Minty Result: Destroyed by S-27 Virus with Autogun Performance ------------- Evolutions (3) 1500 Regions Visited (14) 2800 Robots Destroyed (103) 515 Value Destroyed (5364) 5364 Prototype IDs (58) 1160 Alien Tech Used (1) 200 Bonus (13381) 13381 TOTAL SCORE: 24920 Bonus ------- High Alert Combat Kills 721 Follower Combat Kills 910 Prayed to X0-1V1 5000 Major X0-1V1 Interference 4750 Entered Garrisons 400 Used RIF Installer 1000 Aligned with FarCom 300 Met Data Miner 300 Cogmind --------- Core Integrity 0/450 Matter 275/300 Energy 93/100 System Corruption 9% Temperature Cool (0) Movement Flying (112) Ox1 Location -6/Proximity Caves Parts ------- > --- POWER (2) -------- (None) > --- PROPULSION (3) --- VTOL Module VTOL Module > --- UTILITY (7) ------ Medium Storage Unit Improved Propulsion Shielding (fused) Relay Coupler [Grunt] (33) Relay Coupler [Duelist] (99) > --- WEAPON (2) ------- Powered Hammer > --- INVENTORY (10) --- Cooled Ion Engine Kinecellerator Relay Coupler [Heavy] (99) Firepult Heavy Linear Accelerator Proton Missile Launcher Peak State ------------ > --- POWER ------------ Cooled Deuterium Engine > --- PROPULSION ------- Improved Airjet Improved Airjet Improved Airjet > --- UTILITY ---------- Medium Storage Unit Enhanced Optical Array Improved Targeting Computer Hacking Suite Relay Coupler [Grunt] X0-1V1's Piety Tracker > --- WEAPON ----------- Precision Shock Rifle Falx > --- INVENTORY -------- Improved Hover Unit Cooled Airjet Cooled Airjet Cooling System Relay Coupler [Hunter] Relay Coupler [Heavy] Firepult Missile Launcher [Rating: 61] Favorites ----------- Power Nuclear Core Engine Reinforced Deuterium Engine Power Core Nuclear Core Reactor Cold Fusion Reactor Propulsion Light Treads Treads Light Treads Leg Improved Aluminum Leg Hover Unit Improved Airjet Flight Unit VTOL Module Utility Improved Heat Sink Device Improved Heat Sink Storage Large Storage Unit Processor Improved Targeting Computer Hackware Hacking Suite Protection Hardened Medium Armor Plating Weapon Assault Cannon Energy Gun Advanced Beam Rifle Energy Cannon Particle Cannon Ballistic Gun Autogun Ballistic Cannon Assault Cannon Launcher Rocket Launcher Special Weapon Plasma Flamer Impact Weapon Flail Slashing Weapon Falx Special Melee Weapon Improved Datajack Build | -11 -10 -10 -10 -9 -8 -8 -8 -7 -7 -7 -7 -7 -7 -6 ------- Run | Yrd Mat Min Exi Min Mat Gar Mat Fac Gar Fac Low Low Dat Pro Slots Evolved 6 | . . . . . 4 . . 2 . . . . . . Power . | . . . . . . . . . . . . . . . Propulsion 2 | . . . . . 1 . . 1 . . . . . . Utility 4 | . . . . . 3 . . 1 . . . . . . Weapon . | . . . . . . . . . . . . . . . Parts Attached 109 | . 11 9 2 1 35 10 4 5 19 7 2 1 . 3 Power 9 | . 1 1 . . 4 . 1 1 . 1 . . . . Engine 6 | . 1 . . . 3 . . 1 . 1 . . . . Core 2 | . . 1 . . 1 . . . . . . . . . Reactor 1 | . . . . . . . 1 . . . . . . . Propulsion 31 | . 4 . . . 13 3 . . 10 . . . . 1 Treads 8 | . 4 . . . 4 . . . . . . . . . Leg 5 | . . . . . 5 . . . . . . . . . Wheel . | . . . . . . . . . . . . . . . Hover 9 | . . . . . 4 3 . . 2 . . . . . Flight 9 | . . . . . . . . . 8 . . . . 1 Utility 38 | . 2 3 2 . 9 5 1 2 6 5 1 . . 2 Device 12 | . 1 . 1 . 7 1 . . . . . . . 2 Storage 4 | . . 2 1 . . 1 . . . . . . . . Processor 5 | . . . . . 2 . 1 1 1 . . . . . Hackware 13 | . . . . . . 2 . 1 5 4 1 . . . Protection 4 | . 1 1 . . . 1 . . . 1 . . . . Artifact . | . . . . . . . . . . . . . . . Weapon 31 | . 4 5 . 1 9 2 2 2 3 1 1 1 . . Energy Gun 8 | . . . . . 7 . . 1 . . . . . . Energy Cannon 3 | . 2 . . . 1 . . . . . . . . . Ballistic Gun 4 | . 2 . . . . . . . 2 . . . . . Ballistic Cannon 5 | . . 3 . . 1 . . . 1 . . . . . Launcher 5 | . . 2 . 1 . 1 . 1 . . . . . . Special Weapon 1 | . . . . . . . . . . . . 1 . . Impact Weapon 2 | . . . . . . . 1 . . . 1 . . . Slashing Weapon 1 | . . . . . . . 1 . . . . . . . Piercing Weapon . | . . . . . . . . . . . . . . . Special Melee Weapon 2 | . . . . . . 1 . . . 1 . . . . Unidentified Prototypes 9 | . . . 1 . 5 . 1 . . 1 . 1 . . Parts Lost 20 | . . . . . 5 2 . . 9 . . . . 4 Power 2 | . . . . . . 1 . . 1 . . . . . Propulsion 9 | . . . . . 3 . . . 4 . . . . 2 Utility 6 | . . . . . 2 . . . 2 . . . . 2 Weapon 3 | . . . . . . 1 . . 2 . . . . . Highest Loss Streak 4 | . . . . . 3 1 . . 3 . . . . 4 To Critical Strikes . | . . . . . . . . . . . . . . . Average Backups 9 | . 7 8 7 9 13 8 8 7 8 6 7 8 8 7 Power . | . 1 1 1 1 1 . . . . . 1 1 1 1 Propulsion 3 | . 1 . 2 3 5 3 2 1 . 1 1 1 1 . Utility 2 | . 2 3 1 1 2 3 2 2 4 3 2 2 2 2 Weapon 2 | . 2 3 2 3 3 1 1 3 2 1 3 3 4 3 Tool/Special . | . . . . . . . . . . . . . . . Unused Backups 32 | . 9 3 . . 7 . 2 . 7 1 . . . 3 Power 2 | . 1 . . . 1 . . . . . . . . . Propulsion 9 | . 4 . . . 3 . 2 . . . . . . . Utility 14 | . 1 3 . . 2 . . . 5 1 . . . 2 Weapon 7 | . 3 . . . 1 . . . 2 . . . . 1 Tool/Special . | . . . . . . . . . . . . . . . Average Slot Usage (%) 88 | . 99 99 99 100 95 70 79 86 79 72 76 73 71 69 Engine 4 | . 14 7 . . 7 1 . 6 4 . . . . . Core 2 | . . 7 14 14 1 1 . . . . . . . . Treads 14 | . 23 28 28 28 21 . . . . . . . . . Leg 1 | . 4 . . . 3 3 . . . . . . . . Hover 4 | . . . . . . 15 18 23 13 . . . . . Flight 3 | . . . . . . . . . 6 23 23 22 21 20 Device 8 | . 8 7 . . 17 5 9 7 1 . . . . . Storage 9 | . 14 14 14 14 9 9 9 7 7 7 7 7 7 7 Processor 8 | . . . . . 13 10 12 15 18 5 . . . . Hackware 7 | . . . . . . 9 9 11 16 28 30 29 28 26 Protection 4 | . 4 6 13 14 2 7 6 . . . 6 7 7 7 Energy Gun 1 | . . . . . 3 2 . 2 1 . . . . . Energy Cannon 2 | . 17 8 . . . . . . . . . . . . Ballistic Gun 1 | . 10 . . . . . . . 3 1 . . . . Ballistic Cannon 8 | . . 13 28 28 13 . . . . . . . . . Special Melee Weapon 1 | . . . . . . 2 7 7 1 4 6 6 7 6 Peak Build Rating 61 | . 13 19 30 22 52 46 47 58 61 40 33 35 30 43 Average Rating 31 | . 10 15 19 21 38 28 42 55 44 29 29 30 30 29 On Entrance 27 | 6 6 13 19 20 22 33 36 46 58 29 29 30 30 30 Avg Prop Armor Cover (%) . | . . . . . . . . . . . . . . . Naked Turns . | . . . . . . . . . . . . . . . Heaviest Build 61 | 12 19 34 49 49 61 39 18 27 30 13 13 15 13 15 Greatest Support 60 | 20 40 40 40 40 60 39 18 27 27 13 13 13 13 13 Greatest Overweight (x) 3 | . . . 1 1 3 2 . . 3 . . 1 . 1 Average Overweight (x) . | . . . . 1 . . . . . . . . . . Largest Inventory Capacity 25 | . 8 25 15 15 15 15 10 10 10 10 10 10 10 10 Average Capacity 11 | . 8 8 9 15 15 10 10 10 10 10 10 10 10 10 Most Carried 15 | . 8 8 8 12 15 15 10 10 10 10 10 10 10 10 Average Carried 11 | . 7 7 7 10 14 9 9 8 9 8 9 10 10 9 Final Capacity 15 | 8 8 8 15 15 15 10 10 10 10 10 10 10 10 10 Final Carried 15 | 6 8 8 8 12 15 9 10 10 10 8 10 10 10 8 Class Distribution -------------------- 58% | Mutant 23% | Scavenger-Mutant 10% | Bothacker-Sprinter 3% | Commander-Mutant Dominant Class ---------------- Mutant | -10/Materials Mutant | -10/Mines Mutant | -10/Exiles Mutant | -9/Mines Scavenger-Mutant | -8/Materials Mutant | -8/Garrison Mutant | -8/Materials Mutant | -7/Factory Mutant | -7/Garrison Bothacker-Sprinter | -7/Factory Bothacker-Sprinter | -7/Lower Caves Bothacker-Sprinter | -7/Lower Caves Bothacker-Sprinter | -7/Data Miner Bothacker-Sprinter | -6/Proximity Caves Resources | -11 -10 -10 -10 -9 -8 -8 -8 -7 -7 -7 -7 -7 -7 -6 ----------- Run | Yrd Mat Min Exi Min Mat Gar Mat Fac Gar Fac Low Low Dat Pro Matter Collected 4114 | 200 188 190 . 77 1245 524 12 135 778 98 415 214 . 38 Remotely . | . . . . . . . . . . . . . . . Salvage Created 3409 | . 237 88 . 69 1504 506 12 232 579 22 78 . . 82 Parts 160 | . 10 9 . 3 61 20 . 11 38 2 4 . . 2 Haulers Intercepted 2 | . 1 . . . . . . 1 . . . . . . Recyclers Shooed 4 | . 1 1 . . 2 . . . . . . . . . Parts Field Recycled . | . . . . . . . . . . . . . . . Retrieved Matter . | . . . . . . . . . . . . . . . Parts Self-Destructed 9 | . . . . . . . . . . . 6 . . 3 Prevented 1 | . . . . . . . . . . . 1 . . . Parts Restored . | . . . . . . . . . . . . . . . Kills | -11 -10 -10 -10 -9 -8 -8 -8 -7 -7 -7 -7 -7 -7 -6 ------- Run | Yrd Mat Min Exi Min Mat Gar Mat Fac Gar Fac Low Low Dat Pro Combat Hostiles Destroyed 90 | . 4 6 . 3 35 12 . 3 19 3 2 . . 3 Melee 7 | . . . . . 1 1 . 1 3 . 1 . . . Guns 10 | . 2 . . . 4 2 . . 2 . . . . . Cannons 36 | . 2 2 . . 24 2 . . 3 3 . . . . AOE 30 | . . 4 . 3 4 4 . 2 11 . . . . 2 Classes Destroyed 17 | . 3 2 . 1 6 4 . . 1 . . . . . Worker 4 | . . . . . 3 . . 1 . . . . . . Tunneler 2 | . 1 . . . 1 . . . . . . . . . Hauler 2 | . 1 . . . . . . 1 . . . . . . Recycler 3 | . . . . 1 1 . . 1 . . . . . . Operator 1 | . . . . . 1 . . . . . . . . . Watcher 1 | . . . . . 1 . . . . . . . . . Swarmer 23 | . . 1 . 3 4 . . . 9 3 . . . 3 Cutter 3 | . . . . . . 3 . . . . . . . . Grunt 42 | . 4 4 . . 20 3 . 3 6 . 2 . . . Brawler 1 | . . . . . . 1 . . . . . . . . Protector 1 | . . . . . . 1 . . . . . . . . Sentry 14 | . . . . . 9 2 . . 3 . . . . . Demolisher 1 | . . . . . . 1 . . . . . . . . Hunter 2 | . . . . . 1 1 . . . . . . . . Programmer 1 | . . . . . . . . . 1 . . . . . Heavy 1 | . . . . . 1 . . . . . . . . . Assembled 1 | . . 1 . . . . . . . . . . . . Thug 1 | . . . . . . 1 . . . . . . . . Best Kill Streak 10 | . 2 4 . 3 10 4 . 6 5 3 2 . . 3 Combat Bots Only 6 | . 2 4 . 3 6 4 . 3 5 3 2 . . 3 Max Kills in Single Turn 4 | . 1 1 . 3 3 2 . 4 3 1 1 . . 3 Gunslinging . | . . . . . . . . . . . . . . . Exploded 3 | . . 1 . 3 2 2 . 2 3 . . . . 2 Melee 1 | . . . . . 1 1 . 1 1 . 1 . . . Uniques/NPCs Destroyed . | . . . . . . . . . . . . . . . Combat | -11 -10 -10 -10 -9 -8 -8 -8 -7 -7 -7 -7 -7 -7 -6 -------- Run | Yrd Mat Min Exi Min Mat Gar Mat Fac Gar Fac Low Low Dat Pro Hostile Shots Fired 472 | . 42 16 . 18 158 34 4 31 114 12 6 5 . 32 Missed 159 | . 16 3 . 6 42 13 2 15 42 5 2 4 . 9 Hits 313 | . 26 13 . 12 116 21 2 16 72 7 4 1 . 23 Melee 8 | . . . . . 5 . . . 3 . . . . . Projectile 305 | . 26 13 . 12 111 21 2 16 69 7 4 1 . 23 AOE 5 | . . . . . . 5 . . . . . . . . Critical Strikes 10 | . . . . . 8 1 . 1 . . . . . . Part Disruptions 1 | . . . . . . . . . . . . 1 . . Actively Blocked 1 | . . . . . . . . . . . . 1 . . Damage Taken 4920 | . 342 188 . 120 1801 543 27 138 1165 118 71 70 . 337 Core 1138 | . 26 . . 16 268 166 12 37 326 64 58 32 . 133 Absorbed by Shields 17 | . . . . . . 6 . . 11 . . . . . Redirected to Shielding 171 | . . . . . . 67 9 . . 7 8 7 . 73 Ignored by Resistances 217 | . . 3 . 12 45 11 2 8 73 15 2 . . 46 Core Remaining (%) 60 | 100 . . . 79 . . 1 . . . . . . . Volleys Fired 232 | . 35 9 . 4 86 25 . 1 66 4 . . . 2 Largest 2 | . 2 2 . 2 2 2 . 1 2 1 . . . 1 Hottest 250 | . 136 136 . 85 250 250 . 36 70 70 . . . 250 Shots Fired 360 | . 61 13 . 7 168 32 . 1 72 4 . . . 2 Gun 118 | . 26 . . . 32 12 . . 48 . . . . . Cannon 209 | . 35 5 . 6 134 11 . . 12 4 . . . 2 Launcher 33 | . . 8 . 1 2 9 . 1 12 . . . . . Special . | . . . . . . . . . . . . . . . Kinetic 222 | . 26 . . 6 130 1 . . 55 4 . . . . Thermal 100 | . 35 5 . . 36 22 . . . . . . . 2 Explosive 33 | . . 8 . 1 2 9 . 1 12 . . . . . Electromagnetic 5 | . . . . . . . . . 5 . . . . . Robot Hit Streak 22 | . 7 4 . 1 15 12 . . 22 5 . . . 2 Robot Miss Streak 4 | . 3 1 . 3 3 4 . . 4 . . . . 2 Penetration Max 1 | . . . . . 1 . . . . . . . . . Secondary Targets 2 | . . . . . 1 1 . . . . . . . . Max Gunslinging Chain 1 | . . . . . 1 1 . . . . . . . . Shots Hit Robots 283 | . 30 5 . 2 111 26 2 13 65 14 7 2 1 5 Core Hits 167 | . 9 11 . 4 64 23 . 5 44 1 1 . . 5 Critical Kills 5 | . . . . . 4 . . . . . 1 . . . Critical Parts Destroyed 7 | . . . . 1 6 . . . . . . . . . Critical Strikes 23 | . . . . 1 15 2 . . 4 . 1 . . . Burn 5 | . . . . . 3 2 . . . . . . . . Destroy 11 | . . . . 1 10 . . . . . . . . . Blast 3 | . . . . . 2 . . . 1 . . . . . Smash 1 | . . . . . . . . . . . 1 . . . Sever 3 | . . . . . . . . . 3 . . . . . Melee Attacks 104 | . . . . . . 8 20 13 34 10 8 6 1 4 Impact 14 | . . . . . . . 8 . . . 2 2 . 2 Slashing 37 | . . . . . . . 9 2 26 . . . . . Piercing . | . . . . . . . . . . . . . . . Sneak Attacks 30 | . . . . . . 4 1 11 . 9 3 . 1 1 Combat Hostiles 2 | . . . . . . . . . . 2 . . . . Follow-up Attacks . | . . . . . . . . . . . . . . . Damage Inflicted 9349 | . 565 474 . 202 3064 1034 43 556 2778 292 176 . . 165 Guns 1520 | . 239 . . . 516 198 . . 567 . . . . . Cannons 3716 | . 317 42 . 82 2111 100 . . 772 292 . . . . Explosions 3301 | . . 429 . 107 421 728 . 415 1065 . . . . 136 Melee 763 | . . . . . . . 43 141 374 . 176 . . 29 Ramming 49 | . 9 3 . 13 16 8 . . . . . . . . Kinetic 3972 | . 239 . . 82 2063 . . . 1296 292 . . . . Thermal 2291 | . 317 42 . . 843 598 . 355 . . . . . 136 Explosive 2231 | . . 429 . 107 142 428 . 60 1065 . . . . . Electromagnetic 43 | . . . . . . . . . 43 . . . . . Impact 248 | . . . . . . . 43 . . . 176 . . 29 Slashing 515 | . . . . . . . . 141 374 . . . . . Piercing . | . . . . . . . . . . . . . . . Highest Corruption 12 | . . . . . 8 12 2 . 7 7 9 9 9 9 Average Corruption 5 | . . . . . 5 9 2 . 1 7 9 9 9 9 Corruption Purged . | . . . . . . . . . . . . . . . Corruption Blocked . | . . . . . . . . . . . . . . . Effects 66 | . . . . . 18 24 3 . 6 3 2 2 1 7 Message Errors 17 | . . . . . 3 5 . . 4 . . 2 1 2 Matter Fused 19 | . . . . . 7 8 . . . 1 1 . . 2 Heat Flow Errors 8 | . . . . . 1 3 3 . 1 . . . . . Energy Discharges 6 | . . . . . 2 2 . . . . 1 . . 1 Parts Fused 1 | . . . . . . 1 . . . . . . . . Data Loss (minor) 7 | . . . . . 3 3 . . . . . . . 1 Data Loss (major) 6 | . . . . . 2 1 . . 1 2 . . . . Misfires 1 | . . . . . . 1 . . . . . . . . Alerts 1 | . . . . . . . . . . . . . . 1 Overload Shots . | . . . . . . . . . . . . . . . Overflow Damage 346 | . . . . . 57 . 3 99 90 73 15 . . 9 Projectiles 176 | . . . . . 31 . . . 72 73 . . . . Explosions 116 | . . . . . 22 . . 71 18 . . . . 5 Melee 54 | . . . . . 4 . 3 28 . . 15 . . 4 Knockbacks 24 | . . . . . 20 . 1 . . 1 1 . . 1 Impact 3 | . . . . . . . 1 . . . 1 . . 1 Kinetic 19 | . . . . . 18 . . . . 1 . . . . Secondary 2 | . . . . . 2 . . . . . . . . . Self-Inflicted Damage 493 | . . 29 . 37 115 97 . . 166 . . . . 49 Shots 19 | . . 1 . 1 5 4 . . 4 . . . . 4 Rammed 11 | . 3 1 . 1 3 2 . . . 1 . . . . Targets Rammed 14 | . 3 1 . 2 5 2 . . . 1 . . . . Kicked 1 | . . . . . 1 . . . . . . . . . Crushed 2 | . . . . 1 1 . . . . . . . . . Highest Temperature 517 | . 144 33 . 135 517 495 344 . 234 16 1 348 . 259 Average Temperature 98 | . 36 20 . 73 99 177 143 . 36 10 1 178 . 135 Received Heat Transfer 1584 | . 198 84 . . 900 117 9 72 153 6 36 9 . . Effects 5 | . . . . . 2 2 . . . . . 1 . . Shutdowns 1 | . . . . . . 1 . . . . . . . . Energy Bleed 2 | . . . . . 1 1 . . . . . . . . Interference 2 | . . . . . 1 . . . . . . 1 . . Siege Activations . | . . . . . . . . . . . . . . . Martial Activations . | . . . . . . . . . . . . . . . Shielding Activations . | . . . . . . . . . . . . . . . Robots Disrupted . | . . . . . . . . . . . . . . . Combat Hostiles . | . . . . . . . . . . . . . . . Robots Corrupted 2 | . . . . . 1 . . . . . 1 . . . Combat Hostiles 1 | . . . . . . . . . . . 1 . . . Parts Fried 1 | . . . . . . . . . . . 1 . . . Impact Corruptions 4 | . . . . . 1 . 1 . . . 1 . . 1 Robots Melted 6 | . . . . . 2 3 . . . . . . . 1 Combat Hostiles 6 | . . . . . 2 3 . . . . . . . 1 Parts Melted 34 | . . . . . 15 15 . . . . . . . 4 Heat Transferred 7848 | . 555 74 . . 3147 2892 . 300 . . . . . 880 Parts Sabotaged 2 | . . . . . . . . . 2 . . . . . Parts Stolen 1 | . . . . . 1 . . . . . . . . . Parts Stripped . | . . . . . . . . . . . . . . . Power Chain Reactions . | . . . . . . . . . . . . . . . Alert | -11 -10 -10 -10 -9 -8 -8 -8 -7 -7 -7 -7 -7 -7 -6 ------- Run | Yrd Mat Min Exi Min Mat Gar Mat Fac Gar Fac Low Low Dat Pro Maximum Alert Level 5 | . . . . . 2 3 2 2 5 3 . . . . Low Security (%) 29 | . 100 100 . 100 15 . . . . . . . . . Level 1 14 | . . . . . 23 9 . 41 17 . . . . . Level 2 38 | . . . . . 61 55 100 58 13 . . . . . Level 3 10 | . . . . . . 35 . . 21 100 . . . . Level 4 2 | . . . . . . . . . 14 . . . . . Level 5 4 | . . . . . . . . . 31 . . . . . High Security . | . . . . . . . . . . . . . . . Max Security . | . . . . . . . . . . . . . . . Peak Influence 1755 | . 55 152 . 106 643 1043 529 484 1755 1028 . . . . Initial 921 | . . 8 . . 29 316 508 231 289 921 . . . . Average 464 | . 20 72 . 47 383 653 512 355 1063 936 . . . . Influence Increases 5263 | . 167 226 . 192 1443 787 82 273 1666 197 113 . . 117 Destroy 0b10 Robot/C 2480 | . 80 100 . 60 740 300 . 60 820 120 100 . . 100 Destroy 0b10 Robot/NC 85 | . 10 . . 5 35 5 . 15 15 . . . . . Destroy Leader 336 | . 32 20 . 10 192 20 . 2 20 30 . . . 10 Allied During Kill 237 | . . . . . 12 6 . . 197 2 13 . . 7 Successful Hack 94 | . . . . . 28 30 12 . 24 . . . . . Select Force Hacks 60 | . . . . . 30 . . . . 30 . . . . Disable Machine 345 | . 15 15 . . 90 . 15 165 45 . . . . . Anti-Garrison Action 500 | . . . . . . 150 . . 350 . . . . . Destroy Structure 372 | . . 61 . 11 58 81 10 31 120 . . . . . Partial Spotted 15 | . . . . . . . . . . 15 . . . . Lose Combat Pursuer 435 | . 30 30 . . 60 195 45 . 75 . . . . . Miscellaneous 304 | . . . . 106 198 . . . . . . . . . Influence Decreases 5213 | . 145 248 . 116 1032 231 615 369 325 924 531 176 434 67 Entered New Map 2936 | . . 14 . . 47 171 535 279 125 834 381 116 434 . Time Decay 1507 | . 145 234 . 116 595 . 80 60 . 70 110 60 . 37 Lost Part 180 | . . . . . 50 20 . . 90 . . . . 20 Lost Ally 290 | . . . . . 40 40 . 30 110 20 40 . . 10 Purge Threat 300 | . . . . . 300 . . . . . . . . . Squads Dispatched 17 | . 2 1 . . 8 . 1 2 . 3 . . . . Investigation 9 | . 1 1 . . 5 . 1 . . 1 . . . . Extermination 1 | . . . . . . . . . . 1 . . . . Reinforcement 5 | . 1 . . . 2 . . 2 . . . . . . Assault 1 | . . . . . 1 . . . . . . . . . Garrison 1 | . . . . . . . . . . 1 . . . . Intercept . | . . . . . . . . . . . . . . . Searches Triggered . | . . . . . . . . . . . . . . . Construction Impeded 1 | . . . . . 1 . . . . . . . . . Haulers Reinforced 1 | . . . . . . . . 1 . . . . . . Active Scanning Responses . | . . . . . . . . . . . . . . . Cargo Convoy Interrupts . | . . . . . . . . . . . . . . . Stealth | -11 -10 -10 -10 -9 -8 -8 -8 -7 -7 -7 -7 -7 -7 -6 --------- Run | Yrd Mat Min Exi Min Mat Gar Mat Fac Gar Fac Low Low Dat Pro Distress Signals 6 | . . 1 . . 3 . 1 . . 1 . . . . Communications Jammed . | . . . . . . . . . . . . . . . Distress Signals . | . . . . . . . . . . . . . . . Times Spotted 181 | . 10 8 . 3 43 33 7 5 48 4 7 7 . 6 Peak Tracking Total 8 | . 3 4 . 3 7 5 6 2 8 3 4 4 . 5 Tactical Retreats 20 | . 1 1 . . 4 8 3 . 3 . . . . . Traps | -11 -10 -10 -10 -9 -8 -8 -8 -7 -7 -7 -7 -7 -7 -6 ------- Run | Yrd Mat Min Exi Min Mat Gar Mat Fac Gar Fac Low Low Dat Pro Traps Triggered 16 | . . 1 . . 3 7 . . 4 . . 1 . . Indirectly . | . . . . . . . . . . . . . . . Trap Hack Attempts 9 | . . . . . . 9 . . . . . . . . Triggered . | . . . . . . . . . . . . . . . Disarmed . | . . . . . . . . . . . . . . . Reprogrammed . | . . . . . . . . . . . . . . . Reused . | . . . . . . . . . . . . . . . Traps Extracted . | . . . . . . . . . . . . . . . Installed 1 | . . 1 . . . . . . . . . . . . Triggered . | . . . . . . . . . . . . . . . Machines | -11 -10 -10 -10 -9 -8 -8 -8 -7 -7 -7 -7 -7 -7 -6 ---------- Run | Yrd Mat Min Exi Min Mat Gar Mat Fac Gar Fac Low Low Dat Pro Machines Disabled 34 | . 1 1 . . 6 3 1 11 10 . . . . 1 Max in Single Turn 11 | . 1 1 . . 2 1 1 11 2 . . . . . Garrison Relay 6 | . . . . . . 1 . . 5 . . . . . Phase Generator 2 | . . . . . . 1 . . 1 . . . . . Machines Repaired . | . . . . . . . . . . . . . . . Machines Dismantled . | . . . . . . . . . . . . . . . Machines Sabotaged . | . . . . . . . . . . . . . . . Overloaded Fab Kills . | . . . . . . . . . . . . . . . Hacking | -11 -10 -10 -10 -9 -8 -8 -8 -7 -7 -7 -7 -7 -7 -6 --------- Run | Yrd Mat Min Exi Min Mat Gar Mat Fac Gar Fac Low Low Dat Pro Machines Accessed 33 | . 2 1 2 . 10 4 3 2 2 1 1 1 4 . Terminals 19 | . 2 . . . 7 4 3 . 2 . 1 . . . Fabricators 1 | . . . . . . . . 1 . . . . . . Repair Stations 1 | . . . . . 1 . . . . . . . . . Recycling Units . | . . . . . . . . . . . . . . . Scanalyzers 1 | . . . . . 1 . . . . . . . . . Garrison Access 3 | . . . . . 1 . . 1 . 1 . . . . Total Hacks 109 | . 5 1 2 . 39 7 12 2 6 2 5 1 27 . Successful 69 | . 3 1 2 . 19 3 3 1 2 2 5 1 27 . Failed 40 | . 2 . . . 20 4 9 1 4 . . . . . Catastrophic 5 | . 1 . . . . 1 1 1 1 . . . . . Database Lockouts . | . . . . . . . . . . . . . . . Manual 41 | . 5 . 1 . 24 1 7 . 2 1 . . . . Terminals 65 | . 5 . . . 30 7 12 . 6 . 5 . . . Fabricators 1 | . . . . . . . . 1 . . . . . . Repair Stations 4 | . . . . . 4 . . . . . . . . . Recycling Units . | . . . . . . . . . . . . . . . Scanalyzers 3 | . . . . . 3 . . . . . . . . . Garrison Access 5 | . . . . . 2 . . 1 . 2 . . . . Terminal Hacks 64 | . 3 1 2 . 17 3 3 . 2 . 5 1 27 . Record 17 | . . . 1 . . . . . . . 5 . 11 . Part Schematic 8 | . . . . . . . . . . . . . 8 . Robot Schematic 5 | . . . . . . . . . . . . . 5 . Robot Analysis 6 | . 1 . . . 5 . . . . . . . . . Prototype ID Bank 5 | . . . . . 1 . 1 . . . . . 3 . Open Door 3 | . . 1 . . . 1 . . . . . 1 . . Level Access Points 1 | . . . . . . . 1 . . . . . . . Branch Access Points 2 | . . . . . 1 . 1 . . . . . . . Emergency Access Points 2 | . . . . . . 1 . . 1 . . . . . Alert Level 3 | . . . . . 3 . . . . . . . . . Unreport Threat 2 | . . . . . 2 . . . . . . . . . Locate Traps 1 | . . . . . 1 . . . . . . . . . Dispatch Records 1 | . . . . . 1 . . . . . . . . . Transport Status 1 | . . . . . 1 . . . . . . . . . Hauler Manifests 1 | . 1 . . . . . . . . . . . . . Zone Layout 3 | . 1 . . . 2 . . . . . . . . . Garrison Registry 1 | . . . . . . 1 . . . . . . . . Patrol Navigation 1 | . . . . . . . . . 1 . . . . . Proto ID Catalog 1 | . . . 1 . . . . . . . . . . . Fabricator Hacks . | . . . . . . . . . . . . . . . Repair Station Hacks . | . . . . . . . . . . . . . . . Recycling Unit Hacks . | . . . . . . . . . . . . . . . Scanalyzer . | . . . . . . . . . . . . . . . Garrison Access Hacks 3 | . . . . . 1 . . 1 . 1 . . . . Unlock Access 2 | . . . . . 1 . . 1 . . . . . . Coupler Status 1 | . . . . . . . . . . 1 . . . . Unauthorized Hacks 2 | . . . . . 1 . . . . 1 . . . . Terminals . | . . . . . . . . . . . . . . . Fabricators . | . . . . . . . . . . . . . . . Repair Stations . | . . . . . . . . . . . . . . . Recycling Units . | . . . . . . . . . . . . . . . Scanalyzers 1 | . . . . . 1 . . . . . . . . . Extract 1 | . . . . . 1 . . . . . . . . . Garrison Access 1 | . . . . . . . . . . 1 . . . . Eject 1 | . . . . . . . . . . 1 . . . . Data Cores Recovered . | . . . . . . . . . . . . . . . Used . | . . . . . . . . . . . . . . . Hacking Detections 21 | . 2 . . . 9 3 3 2 2 . . . . . Full Trace Events 8 | . 1 . . . 4 1 1 . 1 . . . . . Feedback Events . | . . . . . . . . . . . . . . . Feedback Blocked . | . . . . . . . . . . . . . . . Robot Schematics Acquired 5 | . . . . . . . . . . . . . 5 . Robots Built . | . . . . . . . . . . . . . . . Authchips . | . . . . . . . . . . . . . . . Time . | . . . . . . . . . . . . . . . Total Robot Build Rating . | . . . . . . . . . . . . . . . Part Schematics Acquired 9 | . . . . . 1 . . . . . . . 8 . Parts Built . | . . . . . . . . . . . . . . . Authchips . | . . . . . . . . . . . . . . . Time . | . . . . . . . . . . . . . . . Total Part Build Rating . | . . . . . . . . . . . . . . . Part Studies Acquired . | . . . . . . . . . . . . . . . Parts Repaired . | . . . . . . . . . . . . . . . Time . | . . . . . . . . . . . . . . . Parts Recycled . | . . . . . . . . . . . . . . . Recycled Matter . | . . . . . . . . . . . . . . . Retrieved Matter . | . . . . . . . . . . . . . . . Retrieved Components . | . . . . . . . . . . . . . . . Parts Scanalyzed . | . . . . . . . . . . . . . . . Part Schematics Acquired . | . . . . . . . . . . . . . . . Parts Damaged . | . . . . . . . . . . . . . . . Bothacking | -11 -10 -10 -10 -9 -8 -8 -8 -7 -7 -7 -7 -7 -7 -6 ------------ Run | Yrd Mat Min Exi Min Mat Gar Mat Fac Gar Fac Low Low Dat Pro Used RIF Installer 2 | . . . . . . 1 . . 1 . . . . . Code Merge 1 | . . . . . . . . . . 1 . . . . Program Shield 1 | . . . . . . . . . 1 . . . . . Robots Hacked 29 | . . . . . . 3 . 5 6 5 5 2 1 2 Non-combat 10 | . . . . . . . . 5 . 3 1 . . 1 Combat 19 | . . . . . . 3 . . 6 2 4 2 1 1 Robot Hacks Applied 33 | . . . . . . 3 . 5 6 9 5 2 1 2 parse_system 6 | . . . . . . . . . . 2 1 . 1 2 find_chute 1 | . . . . . . . . 1 . . . . . . ignore_repairs 1 | . . . . . . . . . . 1 . . . . map_walls 1 | . . . . . . . . . . 1 . . . . drop_inventory 1 | . . . . . . . . 1 . . . . . . find_recycling 1 | . . . . . . . . . . 1 . . . . ignore_parts 1 | . . . . . . . . . . 1 . . . . map_route 1 | . . . . . . . . . . 1 . . . . scatter_targeting 1 | . . . . . . 1 . . . . . . . . reboot_system 3 | . . . . . . . . . 2 1 . . . . overwrite_iff 3 | . . . . . . 1 . . . . 2 . . . streamctrl_low 1 | . . . . . . . . 1 . . . . . . formatsys_low 2 | . . . . . . . . 2 . . . . . . formatsys_high 10 | . . . . . . 1 . . 4 1 2 2 . . Relay Couplers Released 27 | . . . . . . 3 . . 21 3 . . . . Ejected 3 | . . . . . . . . . . 3 . . . . Machine Destruction 24 | . . . . . . 3 . . 21 . . . . . Attached 11 | . . . . . . 1 . 1 5 4 . . . . Merged Code Value 6 | . . . . . . . . . . 6 . . . . Fabnet Peak Effective % . | . . . . . . . . . . . . . . . Robots Rewired 4 | . . . . . . 2 . 2 . . . . . . Allies Hacked . | . . . . . . . . . . . . . . . Hacks Repelled . | . . . . . . . . . . . . . . . Allies | -11 -10 -10 -10 -9 -8 -8 -8 -7 -7 -7 -7 -7 -7 -6 -------- Run | Yrd Mat Min Exi Min Mat Gar Mat Fac Gar Fac Low Low Dat Pro Total Allies 26 | . . . . 3 . 4 . 5 6 1 4 2 . 1 Largest Group 6 | . . . . 3 3 2 . 2 6 1 4 2 . 1 Highest-Rated Group 196 | . . . . 40 40 51 . 26 196 80 64 45 . 96 Highest-Rated Ally 96 | . . . . 16 16 31 . 16 80 80 16 29 . 96 Total Orders 2 | . . . . . . . . 1 1 . . . . . STAY 1 | . . . . . . . . . 1 . . . . . AID 1 | . . . . . . . . 1 . . . . . . Ally Attacks 182 | . . . . . 16 20 . 6 88 12 27 1 . 12 Total Damage 3695 | . . . . . 147 350 . 87 1680 526 287 . . 618 Kills 37 | . . . . . 3 4 . . 22 3 3 . . 2 Allies Corrupted . | . . . . . . . . . . . . . . . Allies Melted . | . . . . . . . . . . . . . . . X0-1V1 Amusement Gains 140 | . 10 20 . . 35 30 . 5 30 . . . . 10 Good Acts 40 | . 2 2 . 1 6 8 7 2 2 4 6 . . . Bad Acts 42 | . . 1 . 1 10 5 3 . 15 . 2 3 . 2 Intel | -11 -10 -10 -10 -9 -8 -8 -8 -7 -7 -7 -7 -7 -7 -6 ------- Run | Yrd Mat Min Exi Min Mat Gar Mat Fac Gar Fac Low Low Dat Pro Active Infowar (turns) 2992 | . . . . . 1839 107 68 127 798 47 . . . 6 Optics 2918 | . . . . . 1771 107 68 127 798 47 . . . . Sensors 6 | . . . . . . . . . . . . . . 6 Traps 137 | . . . . . 137 . . . . . . . . . T.N.C. 9 | . . . . . . . . 9 . . . . . . Robot Analysis Total 6 | . 1 . . . 5 . . . . . . . . . Derelict Logs Recovered 7 | . . 1 . 2 . . . . . . 3 . . 1 Drone Launches . | . . . . . . . . . . . . . . . Drone Recoveries . | . . . . . . . . . . . . . . . Exploration | -11 -10 -10 -10 -9 -8 -8 -8 -7 -7 -7 -7 -7 -7 -6 ------------- Run | Yrd Mat Min Exi Min Mat Gar Mat Fac Gar Fac Low Low Dat Pro Turns Passed 6358 | . 414 566 414 251 2155 720 177 127 798 156 223 130 30 197 Spaces Moved 5822 | 1 190 318 241 97 1070 835 244 226 892 336 596 241 100 435 Core 2 | . . . . . . . . . 2 . . . . . Treads 1646 | . 146 318 241 97 844 . . . . . . . . . Legs 323 | 1 44 . . . 220 58 . . . . . . . . Wheels . | . . . . . . . . . . . . . . . Hover 1766 | . . . . . 6 777 244 226 513 . . . . . Flight 2085 | . . . . . . . . . 377 336 596 241 100 435 Fastest Speed 29 | 120 120 160 160 240 112 42 46 42 29 29 29 29 29 29 Average Speed 81 | 120 150 160 169 240 161 51 46 42 46 29 29 33 29 31 Slowest Speed 330 | 120 160 160 240 240 330 166 46 42 275 29 29 109 29 112 Overloaded Moves 1 | . . . . . . . . . 1 . . . . . Propulsion Burnouts . | . . . . . . . . . . . . . . . Robots Hopped 1 | . . . . . . . . . . 1 . . . . Potential Cave-ins 25 | . . 9 . . 3 . . . 13 . . . . . Cave-ins Triggered 1 | . . . . . . . . . 1 . . . . . Exploration Rate (%) 50 | 2 37 86 61 31 84 62 39 11 92 9 78 38 75 58 Regions Visited 14 Branch Regions 7 Pre-discovered Areas 4 | . . 1 1 1 . . . . . . . . 1 . Known Exits Taken 4 | . . . . . 1 . 1 1 . . 1 . . . Unknown Exits Taken 8 | 1 1 1 1 1 . . . . . 1 . 1 1 . Scrap Searched 14 | . . 1 . . . . . . . . 5 3 . 5 Spaces Dug 18 | . . . . . 3 . 11 . 2 . . 2 . . Terrain Destroyed 477 | . 1 80 . 12 66 158 11 31 116 . . 2 . . Melee 15 | . . . . . . . 11 . 2 . . 2 . . Projectile 27 | . 1 . . 3 20 2 . . 1 . . . . . AOE 435 | . . 80 . 9 46 156 . 31 113 . . . . . Terrain Rammed . | . . . . . . . . . . . . . . . Walls Destroyed . | . . . . . . . . . . . . . . . Machines Disabled . | . . . . . . . . . . . . . . . Actions | -11 -10 -10 -10 -9 -8 -8 -8 -7 -7 -7 -7 -7 -7 -6 --------- Run | Yrd Mat Min Exi Min Mat Gar Mat Fac Gar Fac Low Low Dat Pro Total 7000 | . 257 362 249 105 1327 1106 280 250 1160 386 641 282 100 495 Wait 311 | . . 8 . . 59 79 1 . 45 21 27 28 . 43 Move 5806 | . 189 317 240 96 1070 834 243 225 890 333 595 240 99 435 Hop 1 | . . . . . . . . . . 1 . . . . Pick Up 58 | . 8 3 2 1 19 6 3 2 13 . 1 . . . Fast Attach 53 | . 3 3 . . 15 4 3 2 14 4 1 2 . 2 Attach 52 | . 2 . 1 . 9 20 1 2 10 2 1 . . 4 Detach 53 | . . 2 1 . 6 18 2 1 11 5 3 . . 4 Swap 62 | . 6 8 2 2 27 2 1 2 3 3 3 3 . . Drop 93 | . 11 8 3 . 31 16 6 . 15 1 . 1 . 1 Fire 232 | . 35 9 . 4 86 25 . 1 66 4 . . . 2 Melee 104 | . . . . . . 8 20 13 34 10 8 6 1 4 Ram 3 | . . . . . . 2 . . . 1 . . . . Kick 1 | . . . . . 1 . . . . . . . . . Crush 10 | . 3 1 . 2 4 . . . . . . . . . Escape Stasis 139 | . . 2 . . . 82 . . 55 . . . . . Rewire 12 | . . . . . . 1 . 2 4 1 2 2 . . Trap 10 | . . 1 . . . 9 . . . . . . . . Miscellaneous . | . . . . . . . . . . . . . . . Route ------- -11/Scrapyard -10/Materials (discovered 2 exits: [*Mat] / *Min) -10/Mines (discovered 3 exits: [*Mat] / *Exi / Sub) -10/Exiles -9/Mines -8/Materials (discovered 4 exits: *Fac x3 / Gar) -8/Garrison (discovered 3 exits: *Mat x3) -8/Materials (discovered 3 exits: *Fac x3) -7/Factory -7/Garrison (discovered 3 exits: *Fac x3) -7/Factory -7/Lower Caves -7/Lower Caves -7/Data Miner -6/Proximity Caves History --------- Turn | Location | Event 1 | -11/Scrapyard | Discovered new exit (range 0) 1 | -11/Scrapyard | Entered Materials 79 | -10/Materials | Discovered new exit (range 12) 174 | -10/Materials | Discovered new exit (range 19) 308 | -10/Materials | Build established: Mutant 341 | -10/Materials | Prayed at D.C.S.S. Altar Unit 378 | -10/Materials | KI resistance permanently improved by X0-1V1 (+10%; -100 max core) 415 | -10/Materials | Entered Mines 442 | -10/Mines | Discovered new exit (range 9) 444 | -10/Mines | Met a Derelict bent on vengeance 583 | -10/Mines | Assembled infested the area 588 | -10/Mines | Assisted by a Guerilla fighting off Assembled 640 | -10/Mines | Identified exit to Subcaves 640 | -10/Mines | X0-1V1 revealed exit location to -10/Subcaves 687 | -10/Mines | Met a Derelict shopkeep closing up shop 707 | -10/Mines | X0-1V1 vaporized surrounding terrain (radius 15) 752 | -10/Mines | Found a hidden stash of uninstalled traps 781 | -10/Mines | Learned location of Zion (-6) 973 | -10/Mines | Deemed a non-threat by the Exiles lab entrance 974 | -10/Mines | Discovered new exit (range 5) 981 | -10/Mines | Entered Exiles 1020 | -10/Exiles | Met 8R-AWN 1047 | -10/Exiles | Met EX-HEX 1090 | -10/Exiles | Met EX-BIN 1109 | -10/Exiles | Aligned with FarCom system 1111 | -10/Exiles | Given EX-Vault access code 1153 | -10/Exiles | Opened EX-Vault 1168 | -10/Exiles | Found Firepult 1219 | -10/Exiles | Warned to stay clear of 0b10 Research branches 1261 | -10/Exiles | Met EX-DEC 1369 | -10/Exiles | Discovered new exit (range 14) 1395 | -10/Exiles | Left Exiles lab with Firepult 1395 | -10/Exiles | Entered Mines 1494 | -9/Mines | Learned Materials security intel 1588 | -9/Mines | X0-1V1 added 0b10 threat records associated with you (minor) 1605 | -9/Mines | Learned location of Storage (-7) 1626 | -9/Mines | Discovered new exit (range 4) 1638 | -9/Mines | Assisted by bots powering up and referring to "LRC-V3" 1646 | -9/Mines | Entered Materials 1646 | -8/Materials | Accompanied by 3 allies 1646 | -8/Materials | Evolved 4 slots: Propulsion x1, Utility x3 1731 | -8/Materials | Melee accuracy permanently improved by X0-1V1 (+5%; -50 max core) 1767 | -8/Materials | X0-1V1 vaporized surrounding terrain (radius 15) 1819 | -8/Materials | X0-1V1 foreshadows a heat wave 1945 | -8/Materials | Discovered new exit (range 8) 2028 | -8/Materials | Ambient heat levels rising (+10) 2131 | -8/Materials | X0-1V1 added 0b10 threat records associated with you (considerable) 2183 | -8/Materials | Arm. Treads reconfigured into Item Mimic 2266 | -8/Materials | Ambient heat levels rising (+10) 2334 | -8/Materials | X0-1V1 sent hostile Y-45 Defender (x1) 2436 | -8/Materials | Ambient heat levels falling (-10) 2446 | -8/Materials | First assault squad dispatched 2487 | -8/Materials | Discovered new exit (range 8) 2573 | -8/Materials | Build established: Scavenger-Mutant 2636 | -8/Materials | Discovered new exit (range 17) 2708 | -8/Materials | Ambient heat levels falling (-10) 3076 | -8/Materials | X0-1V1 activates XOMVISION 3154 | -8/Materials | Core integrity fell below 50% 3463 | -8/Materials | Lost 3 parts (3n) 3801 | -8/Materials | Identified exit to Garrison 3801 | -8/Materials | Entered Garrison 3862 | -8/Garrison | Build established: Mutant 3883 | -8/Garrison | Garrison Relay disabled 3914 | -8/Garrison | X0-1V1 mutated your Propulsion slot to Weapon slot 3939 | -8/Garrison | X0-1V1 sent hostile B-36 Bruiser (x1) 4062 | -8/Garrison | System corruption reached 10% 4120 | -8/Garrison | Energy generation permanently improved by X0-1V1 (+10; -100 max core) 4146 | -8/Garrison | Core integrity restored by X0-1V1 (+51) 4154 | -8/Garrison | Triggered checkpoint 4179 | -8/Garrison | Core integrity fell below 20% 4241 | -8/Garrison | Discovered new exit (range 14) 4296 | -8/Garrison | Phase Generator disabled 4316 | -8/Garrison | Installed Relay Interface Framework 4389 | -8/Garrison | Discovered new exit (range 72) 4389 | -8/Garrison | Discovered new exit (range 37) 4389 | -8/Garrison | Discovered new exit (range 66) 4431 | -8/Garrison | Triggered checkpoint 4465 | -8/Garrison | Triggered checkpoint 4505 | -8/Garrison | X0-1V1 mutated your Weapon slot to Power slot 4521 | -8/Garrison | Entered Materials 4544 | -8/Materials | X0-1V1 sent hostile Y-45 Defender (x2) 4572 | -8/Materials | X0-1V1 released a cloud of subatomizers 4613 | -8/Materials | X0-1V1 sent you to a vault 4639 | -8/Materials | Identified exit to Factory 4698 | -8/Materials | Entered Factory 4698 | -7/Factory | Evolved 2 slots: Propulsion x1, Utility x1 4807 | -7/Factory | Identified exit to Garrison 4825 | -7/Factory | Entered Garrison 4825 | -7/Garrison | Accompanied by 2 allies 4835 | -7/Garrison | Triggered checkpoint 4839 | -7/Garrison | Garrison Relay disabled 4877 | -7/Garrison | Triggered checkpoint 4914 | -7/Garrison | Triggered checkpoint 4938 | -7/Garrison | Discovered new exit (range 21) 4977 | -7/Garrison | H-XX Assembler disabled 5074 | -7/Garrison | Garrison Relay disabled 5097 | -7/Garrison | X0-1V1 sent you into danger 5101 | -7/Garrison | Triggered checkpoint 5102 | -7/Garrison | Lost 3 allies 5142 | -7/Garrison | Discovered new exit (range 9) 5144 | -7/Garrison | Found embedded Infiltrators 5157 | -7/Garrison | X0-1V1 activates XOMVISION 5183 | -7/Garrison | Garrison Relay disabled 5223 | -7/Garrison | Triggered checkpoint 5274 | -7/Garrison | X0-1V1 vaporized surrounding terrain (radius 22) 5276 | -7/Garrison | Phase Generator disabled 5276 | -7/Garrison | Discovered new exit (range 17) 5307 | -7/Garrison | Core integrity fell below 50% 5322 | -7/Garrison | Garrison Relay disabled 5341 | -7/Garrison | Expanded RIF knowledge: Program Shield 5373 | -7/Garrison | X0-1V1 rewrote 7B-OR3(x) IFF filter 5413 | -7/Garrison | Lost 3 parts (3n) 5473 | -7/Garrison | Triggered checkpoint 5476 | -7/Garrison | Garrison Relay disabled 5579 | -7/Garrison | Crushed by falling debris 5580 | -7/Garrison | Core integrity fell below 20% 5623 | -7/Garrison | Entered Factory 5623 | -7/Factory | Accompanied by 1 ally 5677 | -7/Factory | Garrison activated, responded to threat 5728 | -7/Factory | Expanded RIF knowledge: Code Merge 5731 | -7/Factory | Core integrity restored by X0-1V1 (+94) 5778 | -7/Factory | Discovered new exit (range 5) 5779 | -7/Factory | Entered Lower Caves 5808 | -7/Lower Caves | Identified exit to Lower Caves 5810 | -7/Lower Caves | X0-1V1 activates XOMVISION 5878 | -7/Lower Caves | Attracted the attention of an 0b10 base 5886 | -7/Lower Caves | Learned Research emergency access door positions 5941 | -7/Lower Caves | Build established: Bothacker-Sprinter 5973 | -7/Lower Caves | Learned Factory terminal intel 5978 | -7/Lower Caves | Core integrity restored by X0-1V1 (+94) 5990 | -7/Lower Caves | Learned Factory stockpile data 6002 | -7/Lower Caves | Entered another Lower Caves area 6003 | -7/Lower Caves | Encountered a Warlord checkpoint 6061 | -7/Lower Caves | Found Alien Artifact 6061 | -7/Lower Caves | Identified Core Expander 6061 | -7/Lower Caves | Installed Core Expander, added new Weapon slot 6121 | -7/Lower Caves | X0-1V1 mutated your Weapon slot to Utility slot 6126 | -7/Lower Caves | Discovered new exit (range 13) 6132 | -7/Lower Caves | Entered Data Miner 6132 | -7/Data Miner | Discovered new exit (range 6) 6138 | -7/Data Miner | Met Data Miner 6149 | -7/Data Miner | Learned location of Section 7 (-2) 6149 | -7/Data Miner | Acquired the access code to Warlord's prototype stash 6154 | -7/Data Miner | Received God Mode back door access code from Data Miner 6162 | -7/Data Miner | Entered Proximity Caves 6194 | -6/Proximity Caves | Learned Factory security intel 6219 | -6/Proximity Caves | Escorted by Enhanced Grunt 6269 | -6/Proximity Caves | X0-1V1 rewrote Enhanced Grunt IFF filter 6309 | -6/Proximity Caves | Spotter reported a threat 6336 | -6/Proximity Caves | X0-1V1 sent hostile S-27 Virus (x4) 6339 | -6/Proximity Caves | Spotter reported a threat 6359 | -6/Proximity Caves | Destroyed by S-27 Virus with Autogun Last Messages --------------- 06337_ N-01 Spotter is scanning... 06338_ Mak. Hacking Suite destroyed. 06339_ N-01 Spotter sends a signal. 06339_ ALERT: Unidentified potential threat approaching Complex 0b10. 06344_ VTOL Module destroyed. 06347_ S-27 Virus destroyed. 06347_ Relay Coupler [NC] destroyed. 06347_ X0-1V1 is mildly amused. 06347_ Destroyed Relay Coupler [NC]. 06347_ VTOL Module melted. 06347_ Autogun melted. 06347_ S-27 Virus destroyed. 06347_ S-27 Virus critical meltdown. 06347_ VTOL Module melted. 06347_ Lgt. Nuclear Core melted. 06350_ VKI/=T5=2QTWMV36V5HIOSM 06359_ Destroyed VTOL Module. 06359_ S-27 Virus system corrupted by crushing effect. 06359_ S-27 Virus knocked back. 06359_ X0-1V1 giggles madly! Map ----- +----------------------------------------------------+ | ?????????????????????????????????????????????????? | | ?????????????????????????????????????????????????? | | ?????????????????????????????????????????????????? | | ?????????????????????????????????????????????????? | | ? ???????????????????????????????????????????? | | ?????????????????????????????????????????? | | ?????????????????????????????????????????? | | # ?????????????????????????????????????????? | | # #?????????????????????????????????????????? | | # ##????????????????????????????????????????? | | # #??????????#?????????????????????????????? | | # #????????### ????????????????????????????? | | # ##?????### ???????????????????????????? | | #????? #???????????##?????????????? | | #????? ??###????? ##????????????? | | #????????# ### #????? #????????????? | | #????????# ###### #????????????? | | ##???????# % ##???????????? | | ###??????# %[% #???????????? | | ##??????# ### #### #???????????? | | #????????????# #??# #???????????? | | #?####???????# #??# #???????????? | | " #### #???????# #?? ##???????????? | | "" ### #???????# s #?? #????????????? | | """ #???????## ##?? ????????????? | | " ##??#####@ #??? #???????????? | | "" #?## #??? #???????????? | | " ### #??? #???????????? | | " #### ### #??## ???????????? | | #??## ## ### #????# ???????????? | | #???##### #????? ??????????? | | ## #???????# #????? ??????????? | | ? #??????# ##????? ???????????? | | ##??????# ##?????? ?????????????? | | ##??????# ### ###??????????????????????? | | ##???????# #####?###????????????????????????? | | ? ?????????#####????????????????????????????????? | | ?????????????????????????????????????????????????? | | ?????????????????????????????????????????????????? | | ?????????????????????????????????????????????????? | | ??????########???????????????????????????????????? | | ??????# #???????????????????????????????????? | | ??????## #???????????????????????????????????? | | ???????# #???????????????????????????????????? | | ???##### ##???????????????????????????????????? | | ???# #????????????????????????????????????? | | ???## ##???????????????????????????????????? | | ?#### #???????????????????????????????????? | | ## ! #???????????????????????????????????? | | ##???????????????????????????????????? | +----------------------------------------------------+ Best States ------------- Heat Dissipation 67 Energy Generation 28 Energy Capacity 1400 Matter Stores 789 Matter Capacity 1000 Sight Range 26 Robot Scan Range 15 Terrain Scan Density 10 Armor Coverage 225 Resistance: KI 10 Propulsion Shielding 66 Evasion (%) 64 Targeting Accuracy 14 Recoil Reduction 3 Offensive Hacking 21 Relay Coupler Types 4 Relay Coupler Value 180 Item Schematics ----------------- Rocket Launcher | -8/Materials | Extracted Lgt. Regenerative Plating | -7/Data Miner | Free Combat Drone Bay | -7/Data Miner | Free Exp. Targeting Computer | -7/Data Miner | Free Biomechanical Wings | -7/Data Miner | Free Arm. Medium Treads | -7/Data Miner | Free Force Rifle | -7/Data Miner | Free Adv. Drone Bay | -7/Data Miner | Free Imp. Plasma Cutter | -7/Data Miner | Free Robot Schematics ------------------ S-27 Virus | -7/Data Miner | Free A-15 Conveyor | -7/Data Miner | Free O-24 Administrator | -7/Data Miner | Free H-66 Slayer | -7/Data Miner | Free M-22 Extractor | -7/Data Miner | Free Fabricated ------------ Nothing Repaired ---------- Nothing Studied --------- None Alien Tech Used ----------------- Core Expander Achievements -------------- None Challenges ------------ None Game ------ Seed MicrowarpTrackerPerforator Manual? 0 Play Time 00:58:54 Cumulative 1342.3 hours Start 2026.07.13 @ 14:09:35 End 2026.07.13 @ 15:22:35 Sessions 1 Manual Loads 0 Difficulty Rogue Special Mode None Game No. 1645 Rogue 1361 Adventurer 124 Explorer 160 Win Type - Total 67 Types 52/0/9/4/1/0/0/1/0/0 Lore% 93 Gallery% 84 Achievement% 72 Wizard Run 0 Options --------- Layout 0 ASCII 0 Keyboard 1 Movement Numpad Keybinds 0 Fullscreen 2 Font 18/X11 Map View 76x50 Zoom Use 0% Tactical HUD 1 Map Filters NONE Filters NONE Steam 1 RUN: 9982407a-16e4-4d88-98c2-d7fef1d65f8c